bitfinex-derivatives/quotes_SOLF0:USTF0_20260220
["timestamp","ask_amount","ask_price","bid_price","bid_amount"]
[1771630474936,3.58907174,84.49,84.457,10.6594]
[1771630475139,3.58907174,84.49,84.458,10.64144195]
[1771630476438,10.6542,84.499,84.458,10.64144195]
[1771630476934,3.58907174,84.5,84.461,10.62861334]
[1771630479031,14.24307174,84.5,84.461,10.62861334]
[1771630482434,3.58907174,84.5,84.461,10.62861334]
[1771630483038,10.6532,84.507,84.462,10.6588]
[1771630483332,10.6532,84.507,84.463,10.62549431]
[1771630486437,3.58907174,84.5,84.463,10.62549431]
[1771630495542,3.58907174,84.5,84.464,10.6585]
[1771630495746,10.6531,84.508,84.465,10.61364438]
[1771630498252,3.58907174,84.5,84.465,10.61364438]
[1771630498948,14.24317174,84.5,84.465,10.61364438]
[1771630501151,10.6559,84.486,84.448,10.60663363]
[1771630501456,3.58907174,84.49,84.448,10.60663363]
[1771630502351,3.58907174,84.5,84.456,10.60598924]
[1771630503054,10.6542,84.499,84.458,10.60598565]
[1771630503454,22.11409945,84.533,84.44,18.19960214]
[1771630503455,3.58907174,84.51,84.46,10.60598565]
[1771630504555,3.58907174,84.5,84.46,10.60598565]
[1771630508255,3.58907174,84.5,84.462,10.6588]
[1771630508460,3.58907174,84.5,84.463,10.62096872]
[1771630514771,10.6542,84.499,84.463,10.62096872]
[1771630531580,3.58907174,84.47,84.441,10.60174378]
[1771630532486,3.58907174,84.46,84.433,10.6624]
[1771630533878,3.59157487,84.46,84.433,10.6624]
[1771630534882,3.59157487,84.46,84.433,21.25027041]
[1771630535479,3.59157487,84.46,84.434,10.58787041]
[1771630536682,3.59157487,84.47,84.434,10.58787041]
[1771630537487,14.77648297,84.505,84.424,10.5877959]
[1771630537488,3.59157487,84.46,84.424,10.5877959]
[1771630537787,3.59157487,84.45,84.424,10.5877959]
[1771630540391,3.59157487,84.46,84.424,10.5877959]
[1771630544483,10.6589,84.462,84.424,10.5877959]
[1771630545289,14.77648297,84.498,84.424,10.5877959]
[1771630545491,3.90157034,84.499,84.46,3.84716034]
[1771630545684,14.77648297,84.535,84.43,21.3256]
[1771630545685,3.90157034,84.489,84.441,3.84716034]
[1771630546892,3.90157034,84.499,84.447,3.84716034]
[1771630547491,7.49314521,84.51,84.451,3.84716034]
[1771630547690,7.49314521,84.51,84.409,21.331]
[1771630547691,3.90157034,84.51,84.473,3.84716034]
[1771630548693,3.90157034,84.51,84.474,10.6573]
[1771630549397,3.90157034,84.51,84.474,14.50446034]
[1771630549596,3.90157034,84.51,84.475,3.84716034]
[1771630549900,7.49314521,84.51,84.475,3.84716034]
[1771630554699,3.90157034,84.509,84.475,3.84716034]
[1771630556599,3.90157034,84.499,84.465,10.6584]
[1771630557199,3.90157034,84.499,84.465,14.50556034]
[1771630559498,3.90157034,84.499,84.466,3.84716034]
[1771630561497,3.59157487,84.49,84.466,3.84716034]
[1771630563104,3.90157034,84.499,84.466,3.84716034]
[1771630565606,3.90157034,84.499,84.432,14.6105304]
[1771630565607,6.58190223,84.547,84.48,3.59157487]
[1771630565804,6.5593443,84.539,84.49,3.59157487]
[1771630565996,10.15091917,84.53,84.484,11.03759042]
[1771630566202,6.5593443,84.529,84.474,11.03759042]
[1771630566605,3.59157487,84.52,84.474,11.03759042]
[1771630567106,6.5593443,84.529,84.47,14.62916529]
[1771630567507,6.5593443,84.529,84.495,10.6546]
[1771630571907,6.5593443,84.529,84.485,10.6569]
[1771630572302,6.5593443,84.529,84.47,3.59157487]
[1771630572303,6.5593443,84.529,84.493,10.6559]
[1771630572699,6.5593443,84.529,84.47,3.59157487]
[1771630573011,6.53090919,84.509,84.483,10.6572]
[1771630573314,3.59157487,84.51,84.483,10.6572]
[1771630574105,6.53090919,84.52,84.483,10.6572]
[1771630574406,3.59157487,84.51,84.483,10.6572]
[1771630574803,6.56356444,84.509,84.45,11.03759042]
[1771630575109,3.59157487,84.5,84.44,14.62916529]
[1771630575309,3.59157487,84.5,84.44,3.59157487]
[1771630575709,3.59157487,84.5,84.464,10.6596]
[1771630576407,3.59157487,84.5,84.418,22.18735002]
[1771630576408,3.59157487,84.51,84.46,3.59157487]
[1771630577605,3.59157487,84.51,84.45,3.59157487]
[1771630578712,3.59157487,84.51,84.478,10.6579]
[1771630579711,3.59157487,84.5,84.478,10.6579]
[1771630580112,3.59157487,84.5,84.467,10.6592]
[1771630581010,6.58889602,84.509,84.467,10.6592]
[1771630581515,6.58889602,84.499,84.457,10.6604]
[1771630581811,6.58889602,84.489,84.457,10.6604]
[1771630584714,6.58889602,84.489,84.449,10.6614]
[1771630584915,3.59157487,84.48,84.449,10.6614]
[1771630585214,6.58889602,84.489,84.449,10.6614]
[1771630594126,6.58889602,84.489,84.456,10.6606]
[1771630613039,6.6357441,84.499,84.466,10.6593]
[1771630613640,6.6357441,84.499,84.475,10.6582]
[1771630613847,6.61489442,84.51,84.475,10.6582]
[1771630614035,6.61489442,84.509,84.475,10.6582]
[1771630619147,3.58902754,84.5,84.475,10.6582]
[1771630619747,6.59510724,84.499,84.46,10.66]
[1771630620053,6.59510724,84.479,84.445,11.03759042]
[1771630620554,6.59510724,84.479,84.451,10.6613]
[1771630621048,6.59510724,84.479,84.445,11.03759042]
[1771630621247,6.59510724,84.479,84.444,11.03759042]
[1771630621454,10.18396188,84.47,84.443,10.6622]
[1771630625253,6.59493434,84.47,84.443,10.6622]
[1771630626048,10.2474348,84.48,84.443,10.6622]
[1771630626354,6.65840726,84.479,84.443,10.6622]
[1771630626948,6.65826845,84.499,84.44,3.58902754]
[1771630627154,10.24729599,84.51,84.45,3.58902754]
[1771630627353,6.65826845,84.509,84.45,3.58902754]
[1771630628554,6.64208554,84.55,84.432,165.879]
[1771630628858,6.64194875,84.549,84.49,3.58902754]
[1771630629057,6.64194875,84.549,84.5,3.58902754]
[1771630629260,6.64194875,84.549,84.49,3.58902754]
[1771630630659,6.64194875,84.549,84.504,10.6545]
[1771630632761,3.58902754,84.54,84.504,10.6545]
[1771630633062,10.23526951,84.54,84.506,10.6543]
[1771630633370,6.64624197,84.539,84.506,10.6543]
[1771630633658,10.23638182,84.55,84.506,10.6543]
[1771630635459,6.64722875,84.549,84.506,10.6543]
[1771630636364,3.58902754,84.54,84.506,10.6543]
[1771630639964,6.64404532,84.529,84.497,10.6555]
[1771630640364,3.58902754,84.53,84.497,10.6555]
[1771630641074,6.64404532,84.539,84.497,10.6555]
[1771630641765,3.58902754,84.54,84.507,10.6541]
[1771630650874,6.64408309,84.539,84.507,10.6541]
[1771630653570,3.58902754,84.53,84.507,10.6541]
[1771630653977,10.23178804,84.53,84.5,10.6551]
[1771630655887,10.22812379,84.53,84.5,10.6551]
[1771630658480,10.22812379,84.53,84.473,362.86738425]
[1771630658481,3.58536329,84.54,84.48,3.58536329]
[1771630659680,3.58536329,84.54,84.509,10.6539]
[1771630660182,3.58536329,84.53,84.509,10.6539]
[1771630665981,3.58536329,84.54,84.509,10.6539]
[1771630668078,6.72276925,84.539,84.509,10.6539]
[1771630668980,6.72276925,84.539,84.48,3.58536329]
[1771630669181,6.72276925,84.539,84.478,21.3157]
[1771630669475,6.72276925,84.539,84.48,3.58536329]
[1771630670678,6.72276925,84.539,84.507,10.6542]
[1771630673776,6.72276925,84.539,84.5,10.6551]
[1771630680690,6.72038781,84.519,84.489,10.6564]
[1771630681587,3.58536329,84.51,84.479,10.6577]
[1771630681788,6.71992059,84.509,84.479,10.6577]
[1771630687591,3.58536329,84.49,84.444,14.68784167]
[1771630687789,3.58536329,84.48,84.435,14.68784167]
[1771630687985,3.58536329,84.48,84.43,18.27320496]
[1771630688187,3.58536329,84.48,84.43,3.58536329]
[1771630688896,3.58536329,84.48,84.451,10.6613]
[1771630690591,6.73884328,84.489,84.451,10.6613]
[1771630696702,6.73884328,84.489,84.448,10.6615]
[1771630697998,10.33269874,84.5,84.44,3.58536329]
[1771630698204,10.33269874,84.51,84.46,3.58536329]
[1771630698400,6.74733545,84.51,84.46,3.58536329]
[1771630698702,3.58536329,84.53,84.47,3.58536329]
[1771630698902,6.74760096,84.529,84.47,3.58536329]
[1771630699793,6.74760096,84.529,84.488,10.6565]
[1771630701101,6.74760096,84.529,84.495,10.6557]
[1771630701301,6.69209235,84.539,84.48,3.58536329]
[1771630701699,6.69209235,84.539,84.501,10.6548]
[1771630703009,6.69209235,84.539,84.493,10.6559]
[1771630703306,3.58536329,84.53,84.493,10.6559]
[1771630704910,6.68707303,84.529,84.493,10.6559]
[1771630709108,6.71834303,84.519,84.46,3.58536329]
[1771630709610,6.71834303,84.519,84.477,10.6579]
[1771630709611,3.58536329,84.51,84.477,10.6579]
[1771630709812,6.72082998,84.509,84.477,10.6579]
[1771630716112,6.72082998,84.509,84.433,22.03176251]
[1771630716113,6.76205253,84.499,84.463,10.6597]
[1771630716506,6.76205253,84.499,84.44,3.58536329]
[1771630717714,6.76205253,84.499,84.455,10.6607]
[1771630722915,6.78461114,84.496,84.455,10.6607]
[1771630726414,6.78204902,84.489,84.445,10.6619]
[1771630729120,6.78204902,84.489,84.451,10.6612]
[1771630738527,6.81826966,84.459,84.401,14.68784167]
[1771630738821,6.81826966,84.459,84.4,3.588357]
[1771630739727,6.81826966,84.459,84.418,10.6654]
[1771630741227,6.82928746,84.429,84.386,402.17848498]
[1771630741426,6.82928746,84.429,84.37,3.588357]
[1771630741730,6.82928746,84.429,84.378,10.6704]
[1771630742526,6.84820671,84.419,84.378,10.6704]
[1771630744027,6.85245256,84.429,84.34,14.68784167]
[1771630744222,6.85245256,84.429,84.38,3.588357]
[1771630744424,3.588357,84.44,84.38,3.588357]
[1771630744622,6.85245256,84.439,84.38,3.588357]
[1771630745828,6.85245256,84.439,84.387,10.6693]
[1771630747233,10.39368417,84.43,84.387,10.6693]
[1771630747625,6.80387919,84.429,84.387,10.6693]
[1771630747933,14.66661182,84.494,84.352,399.33328766]
[1771630747934,6.80387919,84.419,84.377,10.6705]
[1771630752133,6.80591609,84.409,84.368,10.6717]
[1771630753641,6.80591609,84.409,84.375,10.6708]
[1771630757241,6.80591609,84.409,84.364,10.6721]
[1771630757450,6.80591609,84.409,84.352,399.33328766]
[1771630757945,6.80591609,84.409,84.371,10.6713]
[1771630758438,6.80591609,84.409,84.378,10.6705]
[1771630758644,3.588357,84.42,84.37,3.588357]
[1771630760534,10.41553722,84.42,84.37,3.588357]
[1771630760739,10.41553722,84.42,84.375,10.6708]
[1771630760939,6.82728281,84.429,84.38,3.588357]
[1771630761636,6.82728281,84.429,84.385,10.6695]
[1771630763047,6.82441282,84.419,84.385,10.6695]
[1771630764046,6.82441282,84.419,84.376,10.6707]
[1771630772457,6.82441282,84.419,84.382,10.6699]
[1771630775158,10.43526067,84.43,84.37,3.588357]
[1771630775454,6.84690367,84.429,84.37,3.588357]
[1771630776760,6.84690367,84.429,84.387,10.6693]
[1771630778158,3.588357,84.42,84.387,10.6693]
[1771630778360,6.8397328,84.419,84.375,10.6708]
[1771630779659,10.42816924,84.41,84.375,10.6708]
[1771630779861,10.43566226,84.41,84.375,10.6708]
[1771630780454,10.43566226,84.41,84.381,10.6701]
[1771630780656,6.83981224,84.41,84.381,10.6701]
[1771630798378,6.93877452,84.409,84.373,10.671]
[1771630798975,6.93881646,84.389,84.352,14.68784167]
[1771630799181,6.93881646,84.389,84.338,14.68784167]
[1771630800082,6.93881646,84.389,84.336,14.68784167]
[1771630800272,6.93881646,84.389,84.335,14.68784167]
[1771630800782,6.93881646,84.389,84.351,10.6739]
[1771630805383,6.93881824,84.414,84.332,14.68784167]
[1771630805585,3.59585002,84.41,84.35,3.59585002]
[1771630805784,6.93883368,84.409,84.35,3.59585002]
[1771630806685,6.93883368,84.409,84.37,10.6714]
[1771630807984,6.93883368,84.409,84.378,10.6704]
[1771630808684,6.93883368,84.409,84.368,10.6717]
[1771630811685,6.92164208,84.399,84.368,10.6717]
[1771630817090,6.92164208,84.399,84.374,10.6709]
[1771630817391,6.92164208,84.399,84.35,3.59585002]
[1771630817392,6.92256738,84.409,84.343,21.3497]
[1771630817586,6.92256738,84.409,84.367,10.6718]
[1771630818892,6.92256738,84.409,84.35,3.59585002]
[1771630819691,6.92256738,84.409,84.373,10.671]
[1771630821394,6.92161615,84.407,84.366,10.6719]
[1771630822693,6.90415148,84.405,84.366,10.6719]
[1771630828408,6.90415148,84.405,84.372,10.6713]
[1771630832212,3.59585002,84.41,84.372,10.6713]
[1771630832411,6.92179458,84.41,84.378,10.6705]
[1771630833316,10.5176446,84.41,84.378,10.6705]
[1771630833712,6.92179458,84.41,84.378,10.6705]
[1771630836523,10.6643,84.427,84.386,10.6695]
[1771630837211,6.92331278,84.423,84.386,10.6695]
[1771630838323,6.92042917,84.419,84.386,10.6695]
[1771630846225,6.90325411,84.429,84.386,10.6695]
[1771630847131,6.90328188,84.439,84.393,10.6685]
[1771630849029,6.90501442,84.437,84.393,10.6685]
[1771630849733,6.90461394,84.429,84.393,10.6685]
[1771630852435,6.9165973,84.419,84.363,14.68784167]
[1771630852636,6.9165973,84.419,84.36,3.59484351]
[1771630853741,6.9165973,84.419,84.379,10.6704]
[1771630854844,6.9165973,84.419,84.386,10.6695]
[1771630859647,3.59484351,84.43,84.4,10.6676]
[1771630861845,3.80418633,84.429,84.4,10.6676]
[1771630863653,3.80418633,84.429,84.393,11.86690498]
[1771630864048,3.80418633,84.429,84.394,1.26120808]
[1771630865454,3.80418633,84.419,84.363,1.26463312]
[1771630865656,3.80418633,84.409,84.363,1.26463312]
[1771630866658,3.80418633,84.409,84.375,10.6708]
[1771630870859,3.80418633,84.409,84.375,11.95261948]
[1771630871459,3.80418633,84.409,84.376,1.28478745]
[1771630873562,3.80418633,84.409,84.354,1.30132222]
[1771630873863,3.80418633,84.409,84.353,14.68784167]
[1771630873864,3.80418633,84.409,84.372,10.6712]
[1771630874765,3.80418633,84.409,84.365,10.6721]
[1771630875061,3.87495106,84.389,84.351,1.29043826]
[1771630876762,3.87495106,84.389,84.358,10.673]
[1771630877151,3.87495106,84.389,84.351,1.29043826]
[1771630878664,3.87495106,84.389,84.353,10.6736]
[1771630878852,3.87495106,84.389,84.351,1.29043826]
[1771630880157,3.87495106,84.389,84.353,1.33667748]
[1771630880453,3.59484351,84.4,84.353,1.33667748]
[1771630880656,3.87495106,84.399,84.353,1.33667748]
[1771630881663,3.87495106,84.399,84.359,10.6729]
[1771630882763,3.87495106,84.399,84.36,1.31520259]
[1771630883263,3.87495106,84.399,84.363,10.6724]
[1771630883463,3.87495106,84.399,84.364,1.31785753]
[1771630885359,3.87495106,84.399,84.365,12.03563837]
[1771630885565,3.87495106,84.399,84.366,1.36353837]
[1771630889268,7.46979457,84.41,84.367,1.38793687]
[1771630889667,7.46979457,84.41,84.368,1.38793687]
[1771630889868,3.87495106,84.409,84.368,1.38793687]
[1771630890264,3.87495106,84.406,84.359,10.6728]
[1771630890468,3.87495106,84.399,84.359,10.6728]
[1771630890768,3.87495106,84.399,84.36,1.36934286]
[1771630892167,3.87495106,84.399,84.363,12.0504498]
[1771630892671,3.87495106,84.399,84.364,1.3780498]
[1771630892971,3.87495106,84.399,84.363,10.6724]
[1771630892972,3.87495106,84.409,84.367,1.38056163]
[1771630893368,3.87495106,84.409,84.369,1.38056163]
[1771630893872,3.87495106,84.409,84.377,12.05454795]
[1771630894073,3.87495106,84.409,84.378,1.38622722]
[1771630894667,3.87495106,84.409,84.381,10.6701]
[1771630906874,3.87495106,84.409,84.341,14.75180006]
[1771630906875,7.71039932,84.42,84.384,1.43985563]
[1771630907277,7.71039932,84.42,84.388,1.44182194]
[1771630907471,4.11431085,84.42,84.388,1.44182194]
[1771630908281,11.01133705,84.452,84.388,1.44182194]
[1771630908476,11.01133705,84.452,84.318,2.06169076]
[1771630908477,8.96147432,84.449,84.39,3.59608847]
[1771630908672,8.96147432,84.449,84.379,14.75180006]
[1771630908673,3.59608847,84.44,84.381,14.75180006]
[1771630908878,3.59608847,84.44,84.348,29.40128457]
[1771630908879,8.96142659,84.439,84.38,3.59608847]
[1771630909675,8.96142659,84.439,84.395,10.6682]
[1771630913081,12.51761449,84.43,84.395,10.6682]
[1771630913283,8.92152602,84.429,84.395,10.6682]
[1771630913788,8.92149581,84.409,84.366,14.75180006]
[1771630914086,8.92149581,84.409,84.36,3.59608847]
[1771630914689,8.92149581,84.409,84.373,10.6711]
[1771630915385,3.59608847,84.43,84.38,3.59608847]
[1771630916684,3.59608847,84.43,84.398,10.6679]
[1771630918288,12.49671071,84.43,84.398,10.6679]
[1771630919880,8.90006619,84.429,84.398,10.6679]
[1771630920085,3.59608847,84.42,84.398,10.6679]
[1771630920286,3.59608847,84.42,84.389,10.669]
[1771630920486,12.49615466,84.42,84.389,10.669]
[1771630920790,8.89977284,84.419,84.389,10.669]
[1771630920985,3.59608847,84.41,84.354,21.347]
[1771630921191,12.49586131,84.41,84.354,21.347]
[1771630921792,12.49586131,84.41,84.385,10.6696]
[1771630924492,3.59608847,84.4,84.377,10.6706]
[1771630924793,8.91933009,84.399,84.377,10.6706]
[1771630925293,3.009e-05,84.399,84.377,10.6706]
[1771630926788,3.59608847,84.41,84.377,10.6706]
[1771630927390,4.45377244,84.409,84.377,10.6706]
[1771630927796,4.45377244,84.409,84.383,10.6698]
[1771630927998,4.45377244,84.409,84.35,3.59608847]
[1771630930202,4.45377244,84.409,84.36,3.59608847]
[1771630930803,4.43881955,84.42,84.39,10.6689]
[1771630940703,4.42154256,84.449,84.392,11.06508169]
[1771630940910,4.42154256,84.449,84.393,11.06508169]
[1771630941401,4.42154256,84.449,84.392,11.06508169]
[1771630942710,4.42154256,84.449,84.399,10.6677]
[1771630945011,3.59608847,84.44,84.399,10.6677]
[1771630945406,4.40338776,84.439,84.399,10.6677]
[1771630948317,4.40338776,84.439,84.405,10.667]
[1771630952526,4.40338776,84.439,84.412,10.6662]
[1771630957324,4.41944242,84.465,84.426,0.02132406]
[1771630957527,8.01553089,84.46,84.426,0.02132406]
[1771630957721,3.59608847,84.45,84.401,0.02132406]
[1771630958025,8.00257369,84.45,84.401,0.02132406]
[1771630958221,4.40648522,84.439,84.404,10.6672]
[1771630959827,4.4795876,84.429,84.393,10.6686]
[1771630960729,4.4795876,84.429,84.358,22.13504605]
[1771630960730,4.4795876,84.429,84.382,10.6699]
[1771630962431,4.4795876,84.429,84.388,10.6691]
[1771630967036,4.4795876,84.429,84.392,0.02491677]
[1771630970339,4.4795876,84.429,84.393,10.6685]
[1771630978240,4.53361514,84.444,84.401,10.6675]
[1771630978543,4.53361514,84.439,84.401,10.6675]
[1771630984747,15.19651514,84.439,84.401,10.6675]
[1771630984948,4.53561156,84.438,84.401,10.6675]
[1771630985548,8.12999272,84.43,84.401,10.6675]
[1771630986051,8.12999272,84.43,84.396,0.02150132]
[1771630986653,4.53561156,84.43,84.396,0.02150132]
[1771630986855,4.53558578,84.429,84.396,0.02150132]
[1771630987152,4.53558578,84.429,84.398,10.6679]
[1771630987354,4.53558578,84.429,84.387,0.06574614]
[1771630988652,10.6648,84.424,84.387,10.73504614]
[1771630988857,4.52514761,84.423,84.387,10.73504614]
[1771630989152,4.52514761,84.423,84.388,0.10094368]
[1771630992355,4.51540948,84.419,84.378,21.73548169]
[1771630992555,4.51540948,84.419,84.378,21.87608097]
[1771630993359,4.51540948,84.419,84.383,10.6698]
[1771630995855,4.52017224,84.409,84.377,11.06508169]
[1771630996159,4.52017224,84.409,84.375,10.6708]
[1771630998364,4.52017224,84.409,84.381,10.67]
[1771631000765,4.52017224,84.409,84.384,10.6697]
[1771631002768,3.59438116,84.42,84.384,10.6697]
[1771631003071,4.51861099,84.418,84.384,10.86732265]
[1771631003276,4.51861099,84.418,84.384,0.19762265]
[1771631004571,4.51803158,84.415,84.384,0.19762265]
[1771631004967,4.51803158,84.415,84.377,10.88723908]
[1771631005169,4.51790925,84.413,84.377,0.21663908]
[1771631008277,4.49299344,84.409,84.377,0.21663908]
[1771631008671,4.49299344,84.409,84.378,10.6704]
[1771631012183,4.49299344,84.409,84.379,0.28732448]
[1771631012684,4.49299344,84.409,84.381,0.28732448]
[1771631023691,4.49299344,84.409,84.374,10.671]
[1771631023884,4.46341419,84.389,84.352,11.06508169]
[1771631024089,4.46341419,84.379,84.341,0.43031529]
[1771631025192,4.46341419,84.379,84.342,11.11011558]
[1771631025589,4.46341419,84.379,84.343,0.43511558]
[1771631026791,4.46341419,84.379,84.346,10.6745]
[1771631027792,4.46341419,84.379,84.343,0.43511558]
[1771631028594,4.46341419,84.379,84.338,10.6754]
[1771631029494,4.46341419,84.379,84.344,10.6747]
[1771631030091,4.46341419,84.379,84.351,10.6738]
[1771631030292,3.59573887,84.39,84.352,0.72342566]
[1771631030596,4.33022408,84.389,84.352,0.72342566]
[1771631040708,4.33022408,84.389,84.353,0.73873031]
[1771631043113,4.33022408,84.389,84.355,0.73435545]
[1771631044710,4.33022408,84.389,84.36,10.6727]
[1771631047113,4.33022408,84.389,84.361,0.87593159]
[1771631047315,4.61185498,84.399,84.361,0.87593159]
[1771631049016,4.58646186,84.396,84.353,10.6736]
[1771631049216,4.58646186,84.389,84.353,10.6736]
[1771631051818,4.58646186,84.388,84.353,10.6736]
[1771631055920,4.58646186,84.388,84.355,11.52135829]
[1771631057525,4.58646186,84.388,84.355,0.84805829]
[1771631058125,4.58646186,84.388,84.36,10.6728]
[1771631058622,4.58646186,84.397,84.361,0.85859385]
[1771631059424,4.58646186,84.397,84.362,10.6724]
[1771631059827,4.58646186,84.397,84.362,11.53423091]
[1771631060727,4.58646186,84.397,84.363,0.86346018]
[1771631063127,4.58646186,84.397,84.37,10.6715]
[1771631063329,10.6664,84.411,84.37,10.6715]
[1771631063330,4.58646186,84.407,84.37,11.5445366]
[1771631063627,4.58646186,84.407,84.371,0.8730366]
[1771631064820,4.58646186,84.407,84.324,21.3545]
[1771631064821,4.58646186,84.407,84.373,0.87634493]
[1771631065025,4.58646186,84.419,84.373,0.87634493]
[1771631065829,4.58646186,84.419,84.379,10.6703]
[1771631066029,8.18220073,84.41,84.379,10.6703]
[1771631068734,4.58646186,84.409,84.379,10.6703]
[1771631069535,4.58646186,84.409,84.385,10.6696]
[1771631070435,4.58646186,84.419,84.385,10.6696]
[1771631072636,4.58646186,84.419,84.385,11.5942724]
[1771631073236,4.58646186,84.419,84.386,0.92742931]
[1771631078536,4.56629106,84.417,84.386,0.92742931]
[1771631078739,4.56629106,84.409,84.372,0.92565499]
[1771631079848,4.56629106,84.409,84.373,10.6711]
[1771631080248,4.56629106,84.409,84.379,10.6703]
[1771631081049,8.16202993,84.4,84.371,10.6713]
[1771631081749,4.56629106,84.4,84.377,10.6706]
[1771631082951,4.56629106,84.4,84.369,10.6716]
[1771631083248,4.56629106,84.399,84.369,10.6716]
[1771631091449,4.56629106,84.399,84.372,10.6712]
[1771631099460,4.56629106,84.399,84.378,10.6705]
[1771631099655,4.56629106,84.399,84.37,0.95189787]
[1771631100663,4.56629106,84.399,84.372,10.6712]
[1771631100962,4.56629106,84.409,84.37,0.95189787]
[1771631101169,11.00935398,84.43,84.37,0.95189787]
[1771631101367,3.59691467,84.43,84.371,4.65986502]
[1771631102556,3.59691467,84.43,84.368,11.07094875]
[1771631102557,11.00935398,84.436,84.398,15.32786502]
[1771631102763,3.59691467,84.44,84.399,4.65986502]
[1771631103159,4.56629106,84.439,84.399,4.65986502]
[1771631103364,4.56629106,84.439,84.38,3.59691467]
[1771631103365,4.56629106,84.439,84.401,4.65986502]
[1771631103564,4.56629106,84.439,84.4,10.6676]
[1771631104360,4.56629106,84.439,84.401,4.65986502]
[1771631104871,311.96894668,84.449,84.415,4.65986502]
[1771631107973,311.96894668,84.449,84.416,15.39739882]
[1771631111672,4.41371206,84.448,84.416,15.39739882]
[1771631112075,3.59691467,84.44,84.416,10.6657]
[1771631116486,3.59691467,84.44,84.388,11.07094875]
[1771631116487,311.96894668,84.449,84.421,15.39669882]
[1771631116686,316.38265874,84.449,84.422,4.73169882]
[1771631116887,4.41371206,84.448,84.393,4.73169882]
[1771631117688,4.41371206,84.448,84.409,4.73169882]
[1771631118185,311.96894668,84.449,84.409,4.73169882]
[1771631118588,3.59691467,84.46,84.409,4.73169882]
[1771631118785,3.59691467,84.45,84.409,4.73169882]
[1771631119689,3.59691467,84.45,84.414,4.73169882]
[1771631122698,3.59691467,84.45,84.416,4.73169882]
[1771631123202,4.41371206,84.449,84.416,4.73169882]
[1771631124298,4.41371206,84.449,84.417,10.6655]
[1771631126100,4.41371206,84.449,84.419,10.6652]
[1771631128403,4.41371206,84.449,84.419,15.39689882]
[1771631130609,3.59691467,84.44,84.413,4.73169882]
[1771631130901,3.59691467,84.44,84.415,4.73169882]
[1771631131104,4.41371206,84.449,84.415,4.73169882]
[1771631132804,4.41371206,84.449,84.418,10.6654]
[1771631134508,4.41371206,84.449,84.419,4.73169882]
[1771631139411,4.71603773,84.439,84.409,4.64700256]
[1771631141613,4.71603773,84.439,84.401,10.6676]
[1771631142004,4.71603773,84.439,84.402,4.64700256]
[1771631142810,4.71603773,84.439,84.403,4.64700256]
[1771631143718,4.71603773,84.439,84.406,4.64700256]
[1771631146719,4.71603773,84.439,84.408,10.6666]
[1771631147416,4.71603773,84.439,84.404,11.03440977]
[1771631147617,4.71603773,84.429,84.401,10.6676]
[1771631147920,4.71603773,84.429,84.401,15.31460256]
[1771631148721,4.71603773,84.429,84.378,22.13504605]
[1771631148722,3.59347629,84.45,84.405,4.64700256]
[1771631148924,8.30951402,84.45,84.41,4.64700256]
[1771631149221,4.71603773,84.449,84.41,4.64700256]
[1771631149422,4.71603773,84.449,84.411,11.03440977]
[1771631149815,4.71603773,84.459,84.421,4.64700256]
[1771631152118,4.71603773,84.459,84.423,4.64700256]
[1771631153719,15.37653773,84.458,84.423,4.64700256]
[1771631154617,4.71603773,84.457,84.423,4.64700256]
[1771631156722,4.71603773,84.457,84.416,11.03440977]
[1771631156919,4.71603773,84.445,84.41,11.03440977]
[1771631157119,4.71603773,84.445,84.405,11.03440977]
[1771631157518,4.71603773,84.445,84.406,4.64700256]
[1771631157721,4.71603773,84.443,84.406,4.64700256]
[1771631157923,4.71603773,84.443,84.407,4.64700256]
[1771631162423,10.6601,84.46,84.416,4.64700256]
[1771631162628,10.6601,84.46,84.421,4.64700256]
[1771631168530,10.6606,84.457,84.421,4.64700256]
[1771631169030,4.86097061,84.456,84.421,4.64700256]
[1771631177641,10.6608,84.455,84.421,4.64700256]
[1771631177843,4.86097061,84.454,84.421,4.64700256]
[1771631187751,4.86097061,84.448,84.412,11.08424381]
[1771631188853,4.86097061,84.448,84.412,16.08079846]
[1771631189958,4.86097061,84.448,84.413,4.99655465]
[1771631193454,4.86097061,84.448,84.413,16.08079846]
[1771631195958,4.86097061,84.446,84.413,16.08079846]
[1771631197159,4.86097061,84.446,84.391,22.13504605]
[1771631197160,4.86097061,84.438,84.405,11.08424381]
[1771631197359,4.86097061,84.438,84.403,4.99655465]
[1771631198661,10.6631,84.437,84.403,4.99655465]
[1771631198854,4.94936323,84.436,84.403,4.99655465]
[1771631210164,4.94936323,84.449,84.412,4.65795475]
[1771631211665,4.94936323,84.449,84.413,10.6661]
[1771631211865,4.94936323,84.449,84.414,4.65795475]
[1771631214378,4.94936323,84.438,84.402,4.65795475]
[1771631215669,10.6631,84.437,84.402,4.65795475]